Cogmind - Beta 16 @@@ ROGUE MODE // 2026.01.02 @ 16:57:05 Player: DietSnapple Result: Destroyed by K9-5NF(R) with Subdweller Shrapnel Launcher Performance ------------- Evolutions (0) 0 Regions Visited (2) 400 Robots Destroyed (15) 75 Value Destroyed (406) 406 Prototype IDs (0) 0 Alien Tech Used (0) 0 Bonus (0) 0 TOTAL SCORE: 881 Bonus ------- None Cogmind --------- Core Integrity 0/250 Matter 213/300 Energy 80/100 System Corruption 0% Temperature Cool (0) Movement Core (250) Ox4 Location -10/Subcaves Parts ------- > --- POWER (1) -------- (None) > --- PROPULSION (2) --- (None) > --- UTILITY (2) ------ Medium Storage Unit Improved Targeting Computer > --- WEAPON (2) ------- Medium Laser Medium Laser > --- INVENTORY (10) --- Aluminum Leg Aluminum Leg Compact Wheel Compact Wheel Peak State ------------ > --- POWER ------------ Ion Engine > --- PROPULSION ------- Light Treads Light Treads > --- UTILITY ---------- Medium Storage Unit Improved Targeting Computer > --- WEAPON ----------- Assault Rifle Rocket Launcher > --- INVENTORY -------- Ion Engine Light Treads Aluminum Leg Aluminum Leg Compact Wheel Compact Wheel Medium Laser Medium Laser [Rating: 9] Favorites ----------- Power Ion Engine Engine Ion Engine Propulsion Light Treads Treads Light Treads Utility Improved Targeting Computer Device Seismic Detector Storage Medium Storage Unit Processor Improved Targeting Computer Weapon Medium Laser Energy Gun Medium Laser Ballistic Gun Assault Rifle Launcher Rocket Launcher Build | -11 -10 -10 ------- Run | Yrd Mat Sub Slots Evolved . | . . . Power . | . . . Propulsion . | . . . Utility . | . . . Weapon . | . . . Parts Attached 13 | 7 2 4 Power 2 | 1 . 1 Engine 2 | 1 . 1 Core . | . . . Reactor . | . . . Propulsion 3 | 2 . 1 Treads 3 | 2 . 1 Leg . | . . . Wheel . | . . . Hover . | . . . Flight . | . . . Utility 4 | 2 2 . Device 1 | 1 . . Storage 2 | 1 1 . Processor 1 | . 1 . Hackware . | . . . Protection . | . . . Artifact . | . . . Weapon 4 | 2 . 2 Energy Gun 2 | 1 . 1 Energy Cannon . | . . . Ballistic Gun 1 | 1 . . Ballistic Cannon . | . . . Launcher 1 | . . 1 Special Weapon . | . . . Impact Weapon . | . . . Slashing Weapon . | . . . Piercing Weapon . | . . . Special Melee Weapon . | . . . Unidentified Prototypes . | . . . Parts Lost 8 | . 1 7 Power 2 | . . 2 Propulsion 3 | . . 3 Utility 1 | . 1 . Weapon 2 | . . 2 Highest Loss Streak 4 | . 1 4 To Critical Strikes . | . . . Average Backups 6 | 3 7 7 Power . | . 1 . Propulsion 4 | 2 4 4 Utility . | . . . Weapon 1 | . 1 1 Tool/Special . | . . . Unused Backups 4 | . . 4 Power . | . . . Propulsion 4 | . . 4 Utility . | . . . Weapon . | . . . Tool/Special . | . . . Average Slot Usage (%) 95 | . 93 96 Engine 12 | . 13 12 Treads 26 | . 27 26 Device 1 | . 5 . Storage 14 | . 14 14 Processor 10 | . 3 14 Energy Gun 14 | . 13 15 Ballistic Gun 10 | . 14 8 Launcher 2 | . . 4 Peak Build Rating 9 | 7 8 9 Average Rating 7 | 4 6 8 On Entrance 5 | . 7 8 Avg Prop Armor Cover (%) . | . . . Naked Turns . | . . . Heaviest Build 21 | 15 19 21 Greatest Support 40 | 40 40 40 Greatest Overweight (x) . | . . . Average Overweight (x) . | . . . Largest Inventory Capacity 10 | 8 10 10 Average Capacity 9 | 7 8 10 Most Carried 8 | 6 8 8 Average Carried 6 | 4 7 7 Final Capacity 10 | 8 10 10 Final Carried 8 | 6 8 4 Class Distribution -------------------- 100% | Mutant Dominant Class ---------------- Mutant | -10/Materials Mutant | -10/Subcaves Resources | -11 -10 -10 ----------- Run | Yrd Mat Sub Matter Collected 433 | 238 69 126 Remotely . | . . . Salvage Created 371 | 10 217 144 Parts 31 | 2 15 14 Haulers Intercepted . | . . . Recyclers Shooed . | . . . Parts Field Recycled . | . . . Retrieved Matter . | . . . Parts Self-Destructed 4 | . . 4 Prevented . | . . . Parts Restored . | . . . Kills | -11 -10 -10 ------- Run | Yrd Mat Sub Combat Hostiles Destroyed 14 | . 7 7 Guns 11 | . 7 4 AOE 3 | . . 3 Classes Destroyed 4 | 1 2 1 Tunneler 1 | 1 . . Swarmer 5 | . 3 2 Grunt 4 | . 4 . Subdweller 5 | . . 5 Best Kill Streak 4 | 1 4 4 Combat Bots Only 4 | . 4 4 Max Kills in Single Turn 2 | 1 1 2 Gunslinging . | . . . Exploded 2 | . . 2 Melee . | . . . Uniques/NPCs Destroyed . | . . . Combat | -11 -10 -10 -------- Run | Yrd Mat Sub Hostile Shots Fired 70 | . 30 40 Missed 15 | . 6 9 Hits 55 | . 24 31 Projectile 55 | . 24 31 AOE 7 | . . 7 Damage Taken 1119 | . 236 883 Core 267 | . 46 221 Absorbed by Shields . | . . . Core Remaining (%) 100 | 100 . . Volleys Fired 36 | 2 12 22 Largest 2 | 2 2 2 Hottest 100 | 70 70 100 Shots Fired 64 | 4 24 36 Gun 54 | 4 24 26 Cannon . | . . . Launcher 10 | . . 10 Special . | . . . Kinetic 20 | 2 12 6 Thermal 34 | 2 12 20 Explosive 10 | . . 10 Electromagnetic . | . . . Robot Hit Streak 15 | 1 7 15 Robot Miss Streak 2 | 2 1 2 Penetration Max . | . . . Secondary Targets 2 | . . 2 Max Gunslinging Chain 1 | . . 1 Shots Hit Robots 36 | 1 15 20 Core Hits 25 | 1 12 12 Critical Kills . | . . . Critical Parts Destroyed . | . . . Critical Strikes 2 | . . 2 Burn 2 | . . 2 Melee Attacks . | . . . Impact . | . . . Slashing . | . . . Piercing . | . . . Sneak Attacks . | . . . Combat Hostiles . | . . . Follow-up Attacks . | . . . Damage Inflicted 955 | 23 189 743 Guns 448 | 23 189 236 Cannons . | . . . Explosions 507 | . . 507 Melee . | . . . Ramming . | . . . Kinetic 160 | 23 89 48 Thermal 288 | . 100 188 Explosive 507 | . . 507 Electromagnetic . | . . . Impact . | . . . Slashing . | . . . Piercing . | . . . Highest Corruption . | . . . Average Corruption . | . . . Corruption Purged . | . . . Corruption Blocked . | . . . Overload Shots . | . . . Overflow Damage 9 | . . 9 Projectiles . | . . . Explosions 9 | . . 9 Melee . | . . . Knockbacks . | . . . Impact . | . . . Kinetic . | . . . Secondary . | . . . Self-Inflicted Damage 127 | . . 127 Shots 4 | . . 4 Rammed . | . . . Targets Rammed . | . . . Kicked . | . . . Crushed . | . . . Highest Temperature 120 | 18 120 . Average Temperature 37 | 10 41 . Received Heat Transfer 111 | . 66 45 Siege Activations . | . . . Martial Activations . | . . . Shielding Activations . | . . . Robots Disrupted . | . . . Combat Hostiles . | . . . Robots Corrupted . | . . . Combat Hostiles . | . . . Parts Fried . | . . . Impact Corruptions . | . . . Robots Melted . | . . . Combat Hostiles . | . . . Parts Melted . | . . . Heat Transferred 999 | . 296 703 Parts Sabotaged . | . . . Parts Stolen . | . . . Parts Stripped . | . . . Power Chain Reactions . | . . . Alert | -11 -10 -10 ------- Run | Yrd Mat Sub Maximum Alert Level . | . . . Low Security (%) 100 | 100 100 . Level 1 . | . . . Level 2 . | . . . Level 3 . | . . . Level 4 . | . . . Level 5 . | . . . High Security . | . . . Max Security . | . . . Peak Influence 121 | 5 121 . Initial . | . . . Average 43 | . 60 . Influence Increases 256 | 5 201 50 Destroy 0b10 Robot/C 180 | . 140 40 Destroy 0b10 Robot/NC 5 | 5 . . Destroy Leader 40 | . 30 10 Destroy Structure 1 | . 1 . Lose Combat Pursuer 30 | . 30 . Influence Decreases 256 | 5 150 101 Entered New Map 25 | . . 25 Time Decay 221 | 5 140 76 Lost Part 10 | . 10 . Squads Dispatched 1 | . 1 . Investigation . | . . . Extermination . | . . . Reinforcement 1 | . 1 . Assault . | . . . Garrison . | . . . Intercept . | . . . Searches Triggered . | . . . Construction Impeded . | . . . Haulers Reinforced . | . . . Active Scanning Responses . | . . . Cargo Convoy Interrupts . | . . . Stealth | -11 -10 -10 --------- Run | Yrd Mat Sub Distress Signals 1 | . 1 . Communications Jammed . | . . . Distress Signals . | . . . Times Spotted 27 | . 15 12 Peak Tracking Total 6 | . 6 4 Tactical Retreats 2 | . 2 . Traps | -11 -10 -10 ------- Run | Yrd Mat Sub Traps Triggered 2 | . 2 . Indirectly . | . . . Trap Hack Attempts . | . . . Triggered . | . . . Disarmed . | . . . Reprogrammed . | . . . Reused . | . . . Traps Extracted . | . . . Installed . | . . . Triggered . | . . . Machines | -11 -10 -10 ---------- Run | Yrd Mat Sub Machines Disabled . | . . . Max in Single Turn . | . . . Machines Repaired . | . . . Machines Dismantled . | . . . Machines Sabotaged . | . . . Overloaded Fab Kills . | . . . Hacking | -11 -10 -10 --------- Run | Yrd Mat Sub Machines Accessed 2 | . 2 . Terminals 2 | . 2 . Fabricators . | . . . Repair Stations . | . . . Recycling Units . | . . . Scanalyzers . | . . . Garrison Access . | . . . Total Hacks 6 | . 6 . Successful 5 | . 5 . Failed 1 | . 1 . Catastrophic . | . . . Database Lockouts . | . . . Manual 6 | . 6 . Terminals 6 | . 6 . Fabricators . | . . . Repair Stations . | . . . Recycling Units . | . . . Scanalyzers . | . . . Garrison Access . | . . . Terminal Hacks 2 | . 2 . Locate Traps 1 | . 1 . Hauler Manifests 1 | . 1 . Fabricator Hacks . | . . . Repair Station Hacks . | . . . Recycling Unit Hacks . | . . . Scanalyzer . | . . . Garrison Access Hacks . | . . . Unauthorized Hacks 3 | . 3 . Terminals 3 | . 3 . Botnet 2 | . 2 . Operators 1 | . 1 . Fabricators . | . . . Repair Stations . | . . . Recycling Units . | . . . Scanalyzers . | . . . Garrison Access . | . . . Data Cores Recovered . | . . . Used . | . . . Hacking Detections 1 | . 1 . Full Trace Events . | . . . Feedback Events . | . . . Feedback Blocked . | . . . Robot Schematics Acquired . | . . . Robots Built . | . . . Authchips . | . . . Time . | . . . Total Robot Build Rating . | . . . Part Schematics Acquired . | . . . Parts Built . | . . . Authchips . | . . . Time . | . . . Total Part Build Rating . | . . . Part Studies Acquired . | . . . Parts Repaired . | . . . Time . | . . . Parts Recycled . | . . . Recycled Matter . | . . . Retrieved Matter . | . . . Retrieved Components . | . . . Parts Scanalyzed . | . . . Part Schematics Acquired . | . . . Parts Damaged . | . . . Bothacking | -11 -10 -10 ------------ Run | Yrd Mat Sub Used RIF Installer . | . . . Robots Hacked . | . . . Non-combat . | . . . Combat . | . . . Robot Hacks Applied . | . . . Relay Couplers Released . | . . . Fabnet Peak Effective % . | . . . Robots Rewired . | . . . Allies Hacked . | . . . Hacks Repelled . | . . . Allies | -11 -10 -10 -------- Run | Yrd Mat Sub Total Allies . | . . . Largest Group . | . . . Highest-Rated Group . | . . . Highest-Rated Ally . | . . . Total Orders . | . . . Ally Attacks . | . . . Total Damage . | . . . Kills . | . . . Allies Corrupted . | . . . Allies Melted . | . . . Intel | -11 -10 -10 ------- Run | Yrd Mat Sub Active Infowar (turns) 158 | 24 134 . Seismic 158 | 24 134 . Robot Analysis Total . | . . . Derelict Logs Recovered . | . . . Drone Launches . | . . . Drone Recoveries . | . . . Exploration | -11 -10 -10 ------------- Run | Yrd Mat Sub Turns Passed 1186 | 148 387 651 Spaces Moved 642 | 81 198 363 Core 3 | 3 . . Treads 639 | 78 198 363 Legs . | . . . Wheels . | . . . Hover . | . . . Flight . | . . . Fastest Speed 50 | 50 160 160 Average Speed 159 | 155 160 160 Slowest Speed 160 | 160 160 160 Overloaded Moves . | . . . Propulsion Burnouts . | . . . Robots Hopped . | . . . Potential Cave-ins . | . . . Cave-ins Triggered . | . . . Exploration Rate (%) 18 | 5 28 23 Regions Visited 2 Branch Regions 1 Pre-discovered Areas . | . . . Known Exits Taken . | . . . Unknown Exits Taken 2 | 1 1 . Scrap Searched . | . . . Spaces Dug . | . . . Terrain Destroyed 69 | . . 69 Melee . | . . . Projectile . | . . . AOE 69 | . . 69 Terrain Rammed . | . . . Walls Destroyed . | . . . Machines Disabled . | . . . Actions | -11 -10 -10 --------- Run | Yrd Mat Sub Total 735 | 95 243 397 Wait 31 | . 26 5 Move 640 | 80 197 363 Hop . | . . . Pick Up 8 | 6 2 . Fast Attach 11 | 7 4 . Attach 4 | . . 4 Detach . | . . . Swap 4 | . 1 3 Drop 1 | . 1 . Fire 36 | 2 12 22 Melee . | . . . Ram . | . . . Kick . | . . . Crush . | . . . Escape Stasis . | . . . Rewire . | . . . Trap . | . . . Miscellaneous . | . . . Route ------- -11/Scrapyard -10/Materials -10/Subcaves (discovered 1 exit: [*Mat]) History --------- Turn | Location | Event 70 | -11/Scrapyard | Discovered new exit (range 16) 149 | -11/Scrapyard | Entered Materials 302 | -10/Materials | Build established: Mutant 307 | -10/Materials | Discovered new exit (range 7) 536 | -10/Materials | Entered Subcaves 537 | -10/Subcaves | Approached by a straggling Scientist 688 | -10/Subcaves | Shifting Twisted Machinery released Sub. Optics 689 | -10/Subcaves | Discovered new exit (range 12) 691 | -10/Subcaves | Shifting Twisted Machinery released Sub. Monowheel 963 | -10/Subcaves | Lost 3 parts (1p1n1w) 1176 | -10/Subcaves | Ambushed by Subdweller buried in earth 1180 | -10/Subcaves | Ambushed by Subdweller buried in earth 1184 | -10/Subcaves | Core integrity fell below 50% 1186 | -10/Subcaves | Ambushed by Subdweller buried in earth 1187 | -10/Subcaves | Core integrity fell below 20% 1187 | -10/Subcaves | Destroyed by K9-5NF(R) with Subdweller Shrapnel Launcher Last Messages --------------- 01096_ Subatomizers dissect the Sub. Monowheel. ZE-W85(c): "I think it's somewhere south of here" 01106_ The unstable cave ceiling collapses. 01118_ Subatomizers dissect the Sub. Monowheel. 01130_ The unstable cave ceiling collapses. ZE-W85(c): "I think it's somewhere southeast of here" 01156_ The unstable cave ceiling collapses. 01172_ Destroyed Sub. Monowheel. 01174_ Rocket Launcher destroyed. [Achievement: Do Not Disturb] 01177_ 2K-8KM(R): "HIDIE!" 01177_ The unstable cave ceiling collapses. 01178_ Lgt. Treads destroyed. 01181_ K9-5NF(R): "ARGHSUB!" 01182_ Ion Engine destroyed. 01183_ 2K-8KM(R) destroyed. 01183_ Switching to secondary target: OP-N13(R). 01183_ OP-N13(R) suffers critical hit (Burn). 01186_ Lgt. Treads destroyed. 01187_ 42-8VI(R): "ARGHSUB!" Map ----- +----------------------------------------------------+ | ????????????????????#"#""""" #######???### | | ???????????????????##"""""""""# ##### | | ???????????????????# """"##" "" ## | | ??????????????????## " " "" =* # | | ?????????????????## " #"" & ! | | ????????????????## "" & # | | ???????????????? [ | | ???????????????? # #= # | | ???????????????## # # #*# | | ???????????????# ##### | | ???????????????# #### "" ####### | | ???????????????## #??## "" ### | | ???????????????# #####???##"" ### | | ???????????????## #????????#######?## | | ???????????????# ##?????????????????##### | | ???????????????## ##?????????????????????? | | ????????????????# #?????????????????????? | | ???????????????## ##?????????????????????? | | ???????????????# ##?????????????????????? | | ???????????????# #?????????????????????? | | ????????????#### ####??????????????????? | | ????????????# #??????????????????? | | ????????????# ##?????????????????? | | ???????????## #?????????????????? | | ???????????# #?????????????????? | | ???????????# R @R #?????????????????? | | ???????????## #?????????????????? | | ???????????# #?????????????????? | | ???????????## ##?????????????????? | | ????????????# ! #??????????????????? | | ????????????## *%& #??????????????????? | | ?????????????# #??????????????????? | | ?????????????# ; #??????????????????? | | ?????????????## ;#??????????????????? | | ?????????????? ; ??????????????????? | | ??????????????# # ??????????????????? | | ??????????????## #?????????????????? | | ??????????????# RR #?????????????????? | | ??????????????# ?##?????????????????? | | ??????????????# ????????????????????? | | ??????????????? ?????????????????????? | | ?????????????????????????????????????????? | | ?????????????????????????????????????????? | | ?????????????????????????????????????????? | | ?????????????????????????????????????????? | | ?????????????????????????????????????????? | | ?????????????????????????????????????????? | | ?????????????????????????????????????????? | | ?????????????????????????????????????????? | | ?????????????????????????????????????????? | +----------------------------------------------------+ Best States ------------- Heat Dissipation 25 Energy Generation 10 Energy Capacity 250 Matter Stores 300 Matter Capacity 300 Sight Range 16 Terrain Scan Density 10 Evasion (%) 40 Targeting Accuracy 6 Recoil Reduction 2 Item Schematics ----------------- None Robot Schematics ------------------ None Fabricated ------------ Nothing Repaired ---------- Nothing Studied --------- None Alien Tech Used ----------------- None Achievements -------------- Do Not Disturb Challenges ------------ None Game ------ Seed SlugRelayLauncher Manual? 0 Play Time 00:07:38 Cumulative 53.5 hours Start 2026.01.02 @ 16:38:40 End 2026.01.02 @ 16:57:05 Sessions 1 Manual Loads 0 Difficulty Rogue Special Mode None Game No. 117 Rogue 110 Adventurer 7 Explorer 0 Win Type - Total 1 Types 1/0/0/0/0/0/0/0/0/0 Lore% 30 Gallery% 38 Achievement% 27 Wizard Run 0 Options --------- Layout 0 ASCII 0 Keyboard 1 Movement Vi Keybinds 0 Fullscreen 1 Font 18/SmallcapsGlow Map View 76x50 Zoom Use 0% Tactical HUD 1 Map Filters NONE Filters NONE Steam 1 RUN: a2a4425a-8c71-4d9c-8f2b-6c881080617a